Cogmind - Beta 10.1 @@@ ROGUE MODE // 2020.10.15 @ 11:04:46 Player: Shamgod Result: Destroyed by G-47 Trooper with Particle Gun Performance ------------- Evolutions (0) 0 Regions Visited (2) 400 Robots Destroyed (30) 150 Value Destroyed (461) 461 Prototype IDs (1) 20 Alien Tech Used (0) 0 Bonus (0) 0 TOTAL SCORE: 1031 Bonus ------- None Cogmind --------- Core Integrity 0/250 Matter 300/300 Energy 48/125 System Corruption 2% Temperature Cool (75) Movement Treading (180) Ox1 Location -10/Mines Parts ------- > --- POWER (1) -------- Light Ion Engine > --- PROPULSION (2) --- Light Treads Compact Wheel > --- UTILITY (2) ------ Improved Heat Sink Large Storage Unit > --- WEAPON (2) ------- Light EM Pulse Cannon Advanced Beam Cannon > --- INVENTORY (10) --- Light Ion Engine Light Treads Small Storage Unit Medium Storage Unit Structural Scanner Light Assault Rifle Light Assault Rifle Grenade Launcher Peak State ------------ > --- POWER ------------ Light Nuclear Core > --- PROPULSION ------- Light Treads Compact Wheel > --- UTILITY ---------- Improved Heat Sink Large Storage Unit > --- WEAPON ----------- Light EM Pulse Cannon Advanced Beam Cannon > --- INVENTORY -------- Light Ion Engine Light Treads Compact Wheel Small Storage Unit Medium Storage Unit Structural Scanner Light EM Pulse Cannon Light Assault Rifle Grenade Launcher [Rating: 15] Favorites ----------- Power Light Nuclear Core Engine Light Ion Engine Power Core Light Nuclear Core Propulsion Light Treads Treads Light Treads Wheel Wheel Utility Medium Storage Unit Device Structural Scanner Storage Medium Storage Unit Weapon EM Pulse Gun Energy Gun EM Pulse Gun Energy Cannon Advanced Beam Cannon Ballistic Gun Light Assault Rifle Build | -11 -10 -10 ------- Run | Scr Mat Min Slots Evolved . | . . . Power . | . . . Propulsion . | . . . Utility . | . . . Weapon . | . . . Parts Attached 35 | 6 17 12 Power 6 | 1 3 2 Engine 5 | 1 2 2 Core 1 | . 1 . Reactor . | . . . Propulsion 8 | 2 2 4 Treads 3 | 1 1 1 Leg . | . . . Wheel 5 | 1 1 3 Hover . | . . . Flight . | . . . Utility 8 | 1 5 2 Device 2 | . 1 1 Storage 6 | 1 4 1 Processor . | . . . Hackware . | . . . Protection . | . . . Artifact . | . . . Weapon 13 | 2 7 4 Energy Gun 4 | 1 2 1 Energy Cannon 6 | . 3 3 Ballistic Gun 3 | 1 2 . Ballistic Cannon . | . . . Launcher . | . . . Special Weapon . | . . . Impact Weapon . | . . . Slashing Weapon . | . . . Piercing Weapon . | . . . Special Melee Weapon . | . . . Unidentified Prototypes 1 | . 1 . Parts Lost 4 | . 2 2 Power 1 | . 1 . Propulsion . | . . . Utility . | . . . Weapon 3 | . 1 2 Highest Loss Streak 1 | . 1 1 Average Slot Usage (%) 99 | . 99 99 Engine 4 | . 6 2 Core 9 | . 7 11 Treads 14 | . 14 14 Wheel 14 | . 14 14 Device 9 | . 6 14 Storage 18 | . 21 14 Energy Gun 8 | . 8 9 Energy Cannon 13 | . 10 17 Ballistic Gun 5 | . 8 . Naked Turns . | . . . Heaviest Build 30 | 10 28 30 Greatest Support 20 | 20 20 20 Greatest Overweight (x) 2 | . 2 1 Average Overweight (x) . | . . . Largest Inventory Capacity 10 | 6 10 10 Average Capacity 9 | 5 8 9 Most Carried 10 | 6 10 10 Average Carried 8 | 3 8 8 Final Capacity 10 | 6 8 10 Final Carried 8 | 6 8 8 Class Distribution -------------------- 100% | Mutant Dominant Class ---------------- Mutant | -10/Materials Mutant | -10/Mines Resources | -11 -10 -10 ----------- Run | Scr Mat Min Matter Collected 595 | 263 192 140 Remotely . | . . . Salvage Created 1412 | 87 410 915 Parts 61 | 2 21 38 Haulers Intercepted . | . . . Recyclers Shooed 2 | . 1 1 Parts Field Recycled . | . . . Retrieved Matter . | . . . Parts Self-Destructed . | . . . Prevented . | . . . Kills | -11 -10 -10 ------- Run | Scr Mat Min Combat Hostiles Destroyed 16 | . 8 8 Guns 6 | . 6 . Cannons 10 | . 2 8 Classes Destroyed 5 | 1 4 . Worker 2 | . 1 1 Recycler 10 | 1 2 7 Watcher 2 | . 2 . Swarmer 9 | . 6 3 Grunt 7 | . 2 5 Best Kill Streak 6 | 1 6 5 Combat Bots Only 3 | . 3 2 Max Kills in Single Turn 1 | 1 1 1 Gunslinging . | . . . Exploded . | . . . Melee . | . . . Uniques/NPCs Destroyed . | . . . Combat | -11 -10 -10 -------- Run | Scr Mat Min Damage Taken 1012 | . 561 451 Core 250 | . 142 108 Absorbed by Shields . | . . . Core Remaining (%) 100 | 100 . . Volleys Fired 96 | 3 57 36 Largest 2 | 2 2 2 Hottest 124 | 70 124 124 Shots Fired 162 | 6 91 65 Gun 98 | 6 73 19 Cannon 64 | . 18 46 Launcher . | . . . Special . | . . . Kinetic 55 | 3 52 . Thermal 46 | 3 28 15 Explosive . | . . . Electromagnetic 61 | . 11 50 Robot Hit Streak 11 | 5 11 10 Robot Miss Streak 5 | . 3 5 Penetration Max . | . . . Secondary Targets . | . . . Shots Hit Robots 107 | 5 61 41 Core Hits 42 | 2 19 21 Critical Hits 2 | . 1 1 Critical Kills 1 | . 1 . Critical Parts Destroyed 1 | . . 1 Melee Attacks . | . . . Impact . | . . . Slashing . | . . . Piercing . | . . . Sneak Attacks . | . . . Combat Hostiles . | . . . Follow-up Attacks . | . . . Damage Inflicted 1577 | 33 678 866 Guns 586 | 33 405 148 Cannons 899 | . 273 626 Explosions 92 | . . 92 Melee . | . . . Ramming . | . . . Kinetic 251 | 8 243 . Thermal 551 | 25 224 302 Explosive . | . . . Electromagnetic 775 | . 211 564 Impact . | . . . Slashing . | . . . Piercing . | . . . Highest Corruption 2 | . 2 2 Average Corruption 2 | . 2 2 Corruption Purged . | . . . Effects 13 | . 11 2 Message Errors 5 | . 4 1 Heat Flow Errors 2 | . 2 . Energy Discharges 3 | . 3 . Data Loss (minor) 2 | . 1 1 Targeting Errors 1 | . 1 . Overload Shots . | . . . Overflow Damage 42 | . 12 30 Projectiles 13 | . 12 1 Explosions 29 | . . 29 Melee . | . . . Knockbacks . | . . . Impact . | . . . Kinetic . | . . . Secondary . | . . . Self-Inflicted Damage 13 | . . 13 Shots 1 | . . 1 Rammed . | . . . Targets Rammed . | . . . Kicked . | . . . Crushed . | . . . Highest Temperature 337 | 40 337 274 Average Temperature 85 | 20 90 84 Received Heat Transfer 204 | . 48 156 Effects 3 | . 3 . Energy Bleed 2 | . 2 . Matter Decay 1 | . 1 . Siege Activations . | . . . Robots Corrupted . | . . . Combat Hostiles . | . . . Parts Fried 2 | . 1 1 Impact Corruptions . | . . . Robots Melted . | . . . Combat Hostiles . | . . . Parts Melted 1 | . . 1 Heat Transferred 1136 | 74 592 470 Parts Sabotaged . | . . . Parts Stolen . | . . . Parts Stripped . | . . . Power Chain Reactions 2 | . . 2 Missiles Intercepted . | . . . Alert | -11 -10 -10 ------- Run | Scr Mat Min Peak Influence 255 | 5 255 145 Initial 25 | . 3 25 Average 76 | 1 91 67 Maximum Alert Level 1 | . 1 . Low Security (%) 92 | 100 86 100 Level 1 7 | . 13 . Level 2 . | . . . Level 3 . | . . . Level 4 . | . . . Level 5 . | . . . High Security . | . . . Max Security . | . . . Squads Dispatched 1 | . 1 . Investigation 1 | . 1 . Extermination . | . . . Reinforcement . | . . . Assault . | . . . Garrison . | . . . Intercept . | . . . Construction Impeded . | . . . Haulers Reinforced . | . . . Stealth | -11 -10 -10 --------- Run | Scr Mat Min Distress Signals 2 | . 2 . Communications Jammed . | . . . Distress Signals . | . . . Times Spotted 30 | . 16 14 Peak Tracking Total 5 | . 5 4 Tactical Retreats 5 | . 1 4 Traps | -11 -10 -10 ------- Run | Scr Mat Min Traps Triggered 3 | . 3 . Indirectly . | . . . Trap Hack Attempts . | . . . Triggered . | . . . Disarmed . | . . . Reprogrammed . | . . . Reused . | . . . Traps Extracted . | . . . Installed . | . . . Triggered . | . . . Machines | -11 -10 -10 ---------- Run | Scr Mat Min Machines Disabled . | . . . Max in Single Turn . | . . . Machines Sabotaged . | . . . Garrisons Compromised . | . . . Overloaded Fab Kills . | . . . Fab Network Shutdowns . | . . . Hacking | -11 -10 -10 --------- Run | Scr Mat Min Machines Accessed 3 | . 3 . Terminals 3 | . 3 . Fabricators . | . . . Repair Stations . | . . . Recycling Units . | . . . Scanalyzers . | . . . Garrison Access . | . . . Total Hacks 14 | . 14 . Successful 6 | . 6 . Failed 8 | . 8 . Catastrophic . | . . . Database Lockouts . | . . . Manual 10 | . 10 . Terminals 14 | . 14 . Fabricators . | . . . Repair Stations . | . . . Recycling Units . | . . . Scanalyzers . | . . . Garrison Access . | . . . Terminal Hacks 5 | . 5 . Robot Analysis 4 | . 4 . Branch Access Points 1 | . 1 . Fabricator Hacks . | . . . Repair Station Hacks . | . . . Recycling Unit Hacks . | . . . Scanalyzer . | . . . Garrison Access Hacks . | . . . Unauthorized Hacks 1 | . 1 . Terminals 1 | . 1 . Botnet 1 | . 1 . Fabricators . | . . . Repair Stations . | . . . Recycling Units . | . . . Scanalyzers . | . . . Garrison Access . | . . . Data Cores Recovered . | . . . Used . | . . . Hacking Detections 1 | . 1 . Full Trace Events 1 | . 1 . Feedback Events . | . . . Feedback Blocked . | . . . Robot Schematics Acquired . | . . . Robots Built . | . . . Matter . | . . . Time . | . . . Total Robot Build Rating . | . . . Part Schematics Acquired . | . . . Parts Built . | . . . Matter . | . . . Time . | . . . Total Part Build Rating . | . . . Parts Repaired . | . . . Time . | . . . Parts Recycled . | . . . Recycled Matter . | . . . Retrieved Matter . | . . . Retrieved Components . | . . . Parts Scanalyzed . | . . . Part Schematics Acquired . | . . . Parts Damaged . | . . . Bothacking | -11 -10 -10 ------------ Run | Scr Mat Min Used RIF Installer . | . . . Robots Hacked . | . . . Non-combat . | . . . Combat . | . . . Robot Hacks Applied . | . . . Relay Couplers Released . | . . . Robots Rewired . | . . . Allies Hacked . | . . . Hacks Repelled . | . . . Allies | -11 -10 -10 -------- Run | Scr Mat Min Total Allies . | . . . Largest Group . | . . . Highest-Rated Group . | . . . Highest-Rated Ally . | . . . Total Orders . | . . . Ally Attacks . | . . . Total Damage . | . . . Kills . | . . . Allies Corrupted . | . . . Allies Melted . | . . . Intel | -11 -10 -10 ------- Run | Scr Mat Min Robot Analysis Total 4 | . 4 . Derelict Logs Recovered . | . . . Drone Launches . | . . . Drone Recoveries . | . . . Exploration | -11 -10 -10 ------------- Run | Scr Mat Min Turns Passed 1379 | 86 746 547 Spaces Moved 721 | 47 386 288 Core 5 | 5 . . Treads 413 | 29 260 124 Legs . | . . . Wheels 303 | 13 126 164 Hover . | . . . Flight . | . . . Fastest Speed 50 | 50 80 110 Average Speed 137 | 126 138 137 Slowest Speed 180 | 160 180 180 Overloaded Moves . | . . . Propulsion Burnouts . | . . . Robots Hopped . | . . . Cave-ins Triggered . | . . . Exploration Rate (%) 35 | 3 60 42 Regions Visited 2 Branch Regions 1 Pre-discovered Areas . | . . . Known Exits Taken 1 | . 1 . Unknown Exits Taken 1 | 1 . . Scrap Searched 2 | . . 2 Spaces Dug . | . . . Terrain Destroyed 19 | . . 19 Melee . | . . . Projectile . | . . . AOE 19 | . . 19 Terrain Rammed . | . . . Walls Destroyed . | . . . Machines Disabled . | . . . Actions | -11 -10 -10 --------- Run | Scr Mat Min Total 957 | 67 517 373 Wait 46 | . 25 21 Move 719 | 46 385 288 Hop . | . . . Pick Up 36 | 9 19 8 Fast Attach 11 | 6 5 . Attach 5 | . 3 2 Detach . | . . . Swap 19 | . 9 10 Drop 25 | 3 14 8 Fire 96 | 3 57 36 Melee . | . . . Ram . | . . . Kick . | . . . Crush . | . . . Escape Stasis . | . . . Rewire . | . . . Trap . | . . . Miscellaneous . | . . . Route ------- -11/Scrapyard -10/Materials (discovered 2 exits: [*Mat] / *Min) -10/Mines (discovered 1 exit: [*Mat]) History --------- Turn | Location | Event 21 | -11/Scrapyard | Discovered new exit (range 16) 87 | -11/Scrapyard | Entered Materials 313 | -10/Materials | Core integrity fell below 50% 369 | -10/Materials | Build established: Mutant 639 | -10/Materials | Discovered new exit (range 13) 796 | -10/Materials | Identified exit to Mines 833 | -10/Materials | Entered Mines 1174 | -10/Mines | Discovered new exit (range 7) 1294 | -10/Mines | Core integrity fell below 20% 1380 | -10/Mines | Destroyed by G-47 Trooper with Particle Gun Last Messages --------------- 01174_ EXIT=FOUND 01226_ EM Pulse Gun destroyed. 01236_ S-10 Pest suffers critical hit. 01236_ Destroyed Flight Unit. 01238_ S-10 Pest destroyed. 01257_ Dropped Com. Wheel. 01260_ Acquired Lgt. Assault Rifle. 01261_ Acquired 14 matter. 01272_ Flight Unit melted. 01272_ S-10 Pest destroyed. 01287_ Acquired 19 matter. 01296_ Destroyed Particle Gun. 01299_ Imp. Heat Sink fried. 01299_ G-47 Trooper destroyed. 01308_ Dropped Lgt. Nuclear Core. 01318_ Acquired 27 matter. 01327_ G-47 Trooper: "SECOND INTRUDER APPROACHING. ELIMINATE." 01327_ Lgt. EM Pulse Cannon destroyed. 01347_ G-34 Mercenary destroyed. 01356_ Acquired 10 matter. Map ----- +----------------------------------------------------+ | ?????????????????????????#""" """ """ """ #?????? | | ????????????????????????##=%= """ """ """ #?????? | | ????????????????????????#" "" """ """ """ #????## | | ????????????????????????#" ## #??### | | ????????????????????????## ## #?## | | ?????????????????????##### ## ### | | ?????????????????????# ## ## | | ?????????????????????# ################*!### ! | | ???????????????????### #????????####??#=%### % | | ??????????????????## #???????## ##?# ==%= ## | | ???????????######## #??????## ###"[=%# ## | | ??????????# < ##?????# ###!*=*# # | | ??????????# # ### ##????# =#%%=## # | | ????????????# ##????# #[!* # ## | | ????????????## ###### #####%### #? | | ?????????????### #????#=## #? | | ???????????????## ### ##???# ## | | ????????????????#####??## ###### ##??#### # | | ????????????????????????# ##????# #????## | | ????????????????????????#g#????## #????# | | ????????????????????????# #????# ##????# | | ????????????????????????# #????# #?????# | | ????????????????????????# #????# ##?????### | | ????????????????????????#*#????## ##????????#### | | ????????????????????????# #?????## #????????????## | | ??????????????# ????????#@#??????# #?????????????# | | ??????????????# ??????#%#??????# #?????????????? | | ??????????????# ????#=#??????# #?????????????? | | ???????????????# ###[######## #?????????????? | | ???????????????# =%!%*= =%=#?????????????? | | ???????????????# ###############?????????????? | | ?????????? ????????????????????????????????? | | ?????????####????????????????????????????????????? | | ?????????????????????????????????????????????????? | | ?????????????????????????????????????????????????? | | ?????????????????????????????????????????????????? | | ?????????????????????????????????????????????????? | | ?????????????????????????????????????????????????? | | ?????????????????????????????????????????????????? | | ?????????????????????????????????????????????????? | | ?????????????????????????????????????????????????? | | ?????????????????????????????????????????????????? | | ?????????????????????????????????????????????????? | | ?????????????????????????????????????????????????? | | ?????????????????????????????????????????????????? | | ?????????????????????????????????????????????????? | | ?????????????????????????????????????????????????? | | ?????????????????????????????????????????????????? | | ?????????????????????????????????????????????????? | | ?????????????????????????????????????????????????? | +----------------------------------------------------+ Best States ------------- Heat Dissipation 39 Energy Generation 14 Energy Capacity 160 Matter Stores 300 Matter Capacity 300 Sight Range 16 Terrain Scan Density 10 Evasion (%) 44 Recoil Reduction 1 Item Schematics ----------------- None Robot Schematics ------------------ None Fabricated ------------ Nothing Alien Tech Used ----------------- None Achievements -------------- root@ Challenges ------------ None Game ------ Seed RecoilDeliveryBeamcaster Manual? 0 Play Time 00:28:37 Cumulative 8.2 hours Start 2020.10.15 @ 10:34:19 End 2020.10.15 @ 11:04:46 Sessions 1 Manual Loads 0 Difficulty Rogue Special Mode None Game No. 13 Rogue 13 Adventurer 0 Explorer 0 Win Type - Total 0 Types 0/0/0/0/0/0/0/0/0 Lore% 8 Gallery% 12 Achievement% 12 Wizard Run 0 Options --------- ASCII 0 Keyboard 1 Movement Numpad Keybinds 0 Fullscreen 2 Font 16/CogWide Map View 76x50 Tactical HUD 1 Map Filters NONE Filters NONE Steam 1 RUN: 3b575693-b2c2-427e-8a1a-ca6452fb4057